Cogmind - Beta 16 --- EXPLORER MODE // 2025.11.21 @ 08:43:30 Player: K.K.Y. Result: Destroyed by as-00732 with Assembled Heavy Rifle Performance ------------- Evolutions (0) 0 Regions Visited (2) 400 Robots Destroyed (21) 105 Value Destroyed (396) 396 Prototype IDs (3) 60 Alien Tech Used (0) 0 Bonus (0) 0 TOTAL SCORE: 961 Bonus ------- None Cogmind --------- Core Integrity 0/250 Matter 300/300 Energy 92/100 System Corruption 2% Temperature Cool (1) Movement Core (50) Location -10/Mines Parts ------- > --- POWER (1) -------- (None) > --- PROPULSION (2) --- (None) > --- UTILITY (3) ------ Core Shielding > --- WEAPON (2) ------- Plasma Cutter > --- INVENTORY (5) ---- Large Storage Unit Structural Scanner Transport Network Coupler Peak State ------------ > --- POWER ------------ Light Nuclear Core > --- PROPULSION ------- Aluminum Leg Aluminum Leg > --- UTILITY ---------- Medium Storage Unit Structural Scanner Terrain Scanner > --- WEAPON ----------- Assault Rifle Assault Rifle > --- INVENTORY -------- Large Storage Unit Transport Network Coupler Core Shielding Plasma Cutter [Rating: 10] Favorites ----------- Power Light Nuclear Core Engine Ion Engine Power Core Light Nuclear Core Propulsion Aluminum Leg Leg Aluminum Leg Utility Medium Storage Unit Device Structural Scanner Storage Medium Storage Unit Protection Core Shielding Weapon Assault Rifle Ballistic Gun Assault Rifle Special Weapon Plasma Cutter Build | -11 -10 -10 ------- Run | Yrd Mat Min Slots Evolved 1 | . 1 . Power . | . . . Propulsion . | . . . Utility 1 | . 1 . Weapon . | . . . Parts Attached 12 | 6 4 2 Power 2 | 1 1 . Engine 1 | 1 . . Core 1 | . 1 . Reactor . | . . . Propulsion 2 | 2 . . Treads . | . . . Leg 2 | 2 . . Wheel . | . . . Hover . | . . . Flight . | . . . Utility 4 | 1 2 1 Device 2 | . 2 . Storage 1 | 1 . . Processor . | . . . Hackware . | . . . Protection 1 | . . 1 Artifact . | . . . Weapon 4 | 2 1 1 Energy Gun . | . . . Energy Cannon . | . . . Ballistic Gun 3 | 2 1 . Ballistic Cannon . | . . . Launcher . | . . . Special Weapon 1 | . . 1 Impact Weapon . | . . . Slashing Weapon . | . . . Piercing Weapon . | . . . Special Melee Weapon . | . . . Unidentified Prototypes . | . . . Parts Lost 4 | . . 4 Power 1 | . . 1 Propulsion 1 | . . 1 Utility 1 | . . 1 Weapon 1 | . . 1 Highest Loss Streak 4 | . . 4 To Critical Strikes . | . . . Average Backups 3 | 1 3 5 Power . | . . . Propulsion . | . . . Utility 2 | . 2 3 Weapon . | . . . Tool/Special . | . . . Unused Backups 3 | . . 3 Power . | . . . Propulsion . | . . . Utility 3 | . . 3 Weapon . | . . . Tool/Special . | . . . Average Slot Usage (%) 88 | . 93 56 Engine 1 | . 2 . Core 9 | . 9 4 Leg 23 | . 25 16 Device 17 | . 18 11 Storage 11 | . 12 8 Ballistic Gun 23 | . 25 12 Peak Build Rating 10 | 6 10 10 Average Rating 8 | 3 9 5 On Entrance 5 | . 6 10 Avg Prop Armor Cover (%) 34 | . . 34 Naked Turns . | . . . Heaviest Build 21 | 19 21 21 Greatest Support 20 | 20 20 20 Greatest Overweight (x) 3 | . 1 3 Average Overweight (x) . | . . . Largest Inventory Capacity 10 | 10 10 10 Average Capacity 9 | 8 10 8 Most Carried 9 | 5 5 9 Average Carried 3 | 1 3 5 Final Capacity 10 | 10 10 5 Final Carried 5 | . 5 3 Class Distribution -------------------- 100% | Hacker-Mutant Dominant Class ---------------- Hacker-Mutant | -10/Materials Hacker-Mutant | -10/Mines Resources | -11 -10 -10 ----------- Run | Yrd Mat Min Matter Collected 678 | 215 373 90 Remotely . | . . . Salvage Created 1186 | . 1012 174 Parts 58 | . 58 . Haulers Intercepted 2 | . 2 . Recyclers Shooed 4 | . 4 . Parts Field Recycled . | . . . Retrieved Matter . | . . . Parts Self-Destructed . | . . . Prevented . | . . . Parts Restored . | . . . Kills | -11 -10 -10 ------- Run | Yrd Mat Min Combat Hostiles Destroyed 22 | . 10 12 Melee 3 | . . 3 Guns 19 | . 10 9 Classes Destroyed 6 | . 5 1 Hauler 2 | . 2 . Recycler 7 | . 7 . Watcher 2 | . 2 . Swarmer 2 | . 2 . Grunt 8 | . 8 . Assembled 12 | . . 12 Best Kill Streak 9 | . 9 7 Combat Bots Only 7 | . 3 7 Max Kills in Single Turn 1 | . 1 1 Gunslinging . | . . . Exploded . | . . . Melee 1 | . . 1 Uniques/NPCs Destroyed . | . . . Combat | -11 -10 -10 -------- Run | Yrd Mat Min Hostile Shots Fired 147 | . 39 108 Missed 47 | . 14 33 Hits 100 | . 25 75 Melee 8 | . . 8 Projectile 92 | . 25 67 Critical Strikes 3 | . 2 1 Part Disruptions 5 | . . 5 Damage Taken 835 | . 188 647 Core 250 | . 38 212 Absorbed by Shields . | . . . Redirected to Shielding 8 | . . 8 Ignored by Resistances 507 | . 120 387 Core Remaining (%) 100 | 100 . . Volleys Fired 69 | . 48 21 Largest 2 | . 2 2 Hottest 40 | . 40 40 Shots Fired 126 | . 96 30 Gun 123 | . 96 27 Cannon . | . . . Launcher . | . . . Special 3 | . . 3 Kinetic 123 | . 96 27 Thermal 3 | . . 3 Explosive . | . . . Electromagnetic . | . . . Robot Hit Streak 16 | . 16 9 Robot Miss Streak 1 | . 1 1 Penetration Max . | . . . Secondary Targets 2 | . 1 1 Max Gunslinging Chain 1 | . 1 1 Shots Hit Robots 99 | . 74 25 Core Hits 62 | . 37 25 Critical Kills . | . . . Critical Parts Destroyed . | . . . Critical Strikes . | . . . Melee Attacks . | . . . Impact . | . . . Slashing . | . . . Piercing . | . . . Sneak Attacks . | . . . Combat Hostiles . | . . . Follow-up Attacks . | . . . Damage Inflicted 1320 | . 957 363 Guns 1256 | . 957 299 Cannons . | . . . Explosions . | . . . Melee . | . . . Ramming 44 | . . 44 Kinetic 1256 | . 957 299 Thermal 20 | . . 20 Explosive . | . . . Electromagnetic . | . . . Impact . | . . . Slashing . | . . . Piercing . | . . . Highest Corruption 2 | . 2 2 Average Corruption 1 | . 1 2 Corruption Purged . | . . . Corruption Blocked . | . . . Effects 6 | . 3 3 Message Errors 2 | . . 2 Heat Flow Errors 2 | . 1 1 Energy Discharges 1 | . 1 . Data Loss (major) 1 | . 1 . Overload Shots . | . . . Overflow Damage . | . . . Projectiles . | . . . Explosions . | . . . Melee . | . . . Knockbacks . | . . . Impact . | . . . Kinetic . | . . . Secondary . | . . . Self-Inflicted Damage 19 | . . 19 Shots . | . . . Rammed 12 | . . 12 Targets Rammed 12 | . . 12 Kicked . | . . . Crushed . | . . . Highest Temperature 272 | . 113 272 Average Temperature 64 | . 27 96 Received Heat Transfer 1001 | . 201 800 Siege Activations . | . . . Martial Activations . | . . . Shielding Activations . | . . . Robots Disrupted . | . . . Combat Hostiles . | . . . Robots Corrupted . | . . . Combat Hostiles . | . . . Parts Fried . | . . . Impact Corruptions . | . . . Robots Melted . | . . . Combat Hostiles . | . . . Parts Melted . | . . . Heat Transferred 74 | . . 74 Parts Sabotaged . | . . . Parts Stolen . | . . . Parts Stripped . | . . . Power Chain Reactions . | . . . Alert | -11 -10 -10 ------- Run | Yrd Mat Min Maximum Alert Level . | . . . Low Security (%) 100 | 100 100 100 Level 1 . | . . . Level 2 . | . . . Level 3 . | . . . Level 4 . | . . . Level 5 . | . . . High Security . | . . . Max Security . | . . . Peak Influence 112 | . 112 . Initial . | . . . Average 10 | . 12 . Influence Increases 328 | . 328 . Destroy 0b10 Robot/C 200 | . 200 . Destroy 0b10 Robot/NC 55 | . 55 . Destroy Leader 58 | . 58 . Successful Hack 15 | . 15 . Influence Decreases 328 | . 328 . Time Decay 301 | . 301 . Purge Threat 27 | . 27 . Squads Dispatched 3 | . 3 . Investigation 3 | . 3 . Extermination . | . . . Reinforcement . | . . . Assault . | . . . Garrison . | . . . Intercept . | . . . Searches Triggered . | . . . Construction Impeded . | . . . Haulers Reinforced . | . . . Active Scanning Responses . | . . . Cargo Convoy Interrupts . | . . . Stealth | -11 -10 -10 --------- Run | Yrd Mat Min Distress Signals 1 | . . 1 Communications Jammed . | . . . Distress Signals . | . . . Times Spotted 35 | . 15 20 Peak Tracking Total 10 | . 4 10 Tactical Retreats 2 | . . 2 Traps | -11 -10 -10 ------- Run | Yrd Mat Min Traps Triggered 2 | . 2 . Indirectly . | . . . Trap Hack Attempts . | . . . Triggered . | . . . Disarmed 1 | . 1 . Reprogrammed . | . . . Reused . | . . . Traps Extracted . | . . . Installed . | . . . Triggered . | . . . Machines | -11 -10 -10 ---------- Run | Yrd Mat Min Machines Disabled . | . . . Max in Single Turn . | . . . Machines Repaired . | . . . Machines Dismantled . | . . . Machines Sabotaged . | . . . Overloaded Fab Kills . | . . . Hacking | -11 -10 -10 --------- Run | Yrd Mat Min Machines Accessed 6 | . 6 . Terminals 6 | . 6 . Fabricators . | . . . Repair Stations . | . . . Recycling Units . | . . . Scanalyzers . | . . . Garrison Access . | . . . Total Hacks 22 | . 22 . Successful 13 | . 13 . Failed 9 | . 9 . Catastrophic . | . . . Database Lockouts . | . . . Manual . | . . . Terminals 22 | . 22 . Fabricators . | . . . Repair Stations . | . . . Recycling Units . | . . . Scanalyzers . | . . . Garrison Access . | . . . Terminal Hacks 13 | . 13 . Prototype ID Bank 1 | . 1 . Branch Access Points 1 | . 1 . Emergency Access Points 1 | . 1 . Unreport Threat 1 | . 1 . Disarm Traps 1 | . 1 . Maintenance Status 1 | . 1 . Surveillance Status 1 | . 1 . Transport Status 1 | . 1 . Hauler Manifests 1 | . 1 . Registered Prototypes 1 | . 1 . Zone Layout 3 | . 3 . Fabricator Hacks . | . . . Repair Station Hacks . | . . . Recycling Unit Hacks . | . . . Scanalyzer . | . . . Garrison Access Hacks . | . . . Unauthorized Hacks . | . . . Terminals . | . . . Fabricators . | . . . Repair Stations . | . . . Recycling Units . | . . . Scanalyzers . | . . . Garrison Access . | . . . Data Cores Recovered . | . . . Used . | . . . Hacking Detections 5 | . 5 . Full Trace Events 3 | . 3 . Feedback Events . | . . . Feedback Blocked . | . . . Robot Schematics Acquired . | . . . Robots Built . | . . . Authchips . | . . . Time . | . . . Total Robot Build Rating . | . . . Part Schematics Acquired . | . . . Parts Built . | . . . Authchips . | . . . Time . | . . . Total Part Build Rating . | . . . Part Studies Acquired . | . . . Parts Repaired . | . . . Time . | . . . Parts Recycled . | . . . Recycled Matter . | . . . Retrieved Matter . | . . . Retrieved Components . | . . . Parts Scanalyzed . | . . . Part Schematics Acquired . | . . . Parts Damaged . | . . . Bothacking | -11 -10 -10 ------------ Run | Yrd Mat Min Used RIF Installer . | . . . Robots Hacked . | . . . Non-combat . | . . . Combat . | . . . Robot Hacks Applied . | . . . Relay Couplers Released . | . . . Fabnet Peak Effective % . | . . . Robots Rewired . | . . . Allies Hacked . | . . . Hacks Repelled . | . . . Allies | -11 -10 -10 -------- Run | Yrd Mat Min Total Allies . | . . . Largest Group . | . . . Highest-Rated Group . | . . . Highest-Rated Ally . | . . . Total Orders . | . . . Ally Attacks . | . . . Total Damage . | . . . Kills . | . . . Allies Corrupted . | . . . Allies Melted . | . . . Intel | -11 -10 -10 ------- Run | Yrd Mat Min Active Infowar (turns) 1264 | . 1183 81 Terrain 852 | . 771 81 Structural 1264 | . 1183 81 Robot Analysis Total . | . . . Derelict Logs Recovered . | . . . Drone Launches . | . . . Drone Recoveries . | . . . Exploration | -11 -10 -10 ------------- Run | Yrd Mat Min Turns Passed 1563 | 48 1325 190 Spaces Moved 881 | 43 745 93 Core 51 | 21 . 30 Treads . | . . . Legs 830 | 22 745 63 Wheels . | . . . Hover . | . . . Flight . | . . . Fastest Speed 50 | 50 120 50 Average Speed 148 | 85 155 118 Slowest Speed 200 | 120 190 200 Overloaded Moves . | . . . Propulsion Burnouts . | . . . Robots Hopped . | . . . Potential Cave-ins . | . . . Cave-ins Triggered . | . . . Exploration Rate (%) 40 | 4 98 19 Regions Visited 2 Branch Regions 1 Pre-discovered Areas . | . . . Known Exits Taken 2 | 1 1 . Unknown Exits Taken . | . . . Scrap Searched . | . . . Spaces Dug . | . . . Terrain Destroyed . | . . . Melee . | . . . Projectile . | . . . AOE . | . . . Terrain Rammed . | . . . Walls Destroyed . | . . . Machines Disabled . | . . . Actions | -11 -10 -10 --------- Run | Yrd Mat Min Total 1016 | 53 817 146 Wait 13 | . 10 3 Move 879 | 42 744 93 Hop . | . . . Pick Up 15 | 5 9 1 Fast Attach 1 | 1 . . Attach 13 | 5 2 6 Detach 5 | . . 5 Swap 2 | . 2 . Drop 7 | . 2 5 Fire 69 | . 48 21 Melee . | . . . Ram 12 | . . 12 Kick . | . . . Crush . | . . . Escape Stasis . | . . . Rewire . | . . . Trap . | . . . Miscellaneous . | . . . Route ------- -11/Scrapyard -10/Materials (discovered 5 exits: *Mat x3 / *Min x2) -10/Mines History --------- Turn | Location | Event 7 | -11/Scrapyard | Identified exit to Materials 7 | -11/Scrapyard | Discovered exit to Materials (range 15) 49 | -11/Scrapyard | Entered Materials 49 | -10/Materials | Evolved 1 slot: Utility x1 195 | -10/Materials | Identified exit to Mines 195 | -10/Materials | Discovered exit to Mines (range 16) 307 | -10/Materials | Build established: Hacker-Mutant 528 | -10/Materials | Discovered exit to Mines (range 7) 569 | -10/Materials | Identified exit to Materials 569 | -10/Materials | Discovered exit to Materials (range 16) 881 | -10/Materials | Discovered exit to Materials (range 5) 1237 | -10/Materials | Discovered exit to Materials (range 14) 1374 | -10/Materials | Entered Mines 1375 | -10/Mines | Assembled infested the area 1380 | -10/Mines | Assisted by a Guerilla fighting off Assembled 1456 | -10/Mines | Core integrity fell below 50% 1470 | -10/Mines | Destroyed 7 combat bots 1503 | -10/Mines | Lost 4 parts (1p1n1u1w) 1525 | -10/Mines | Core integrity fell below 20% 1564 | -10/Mines | Destroyed by as-00732 with Assembled Heavy Rifle Last Messages --------------- 01516_ Dropped Core Shielding. 01521_ as-22008 destroyed. 01525_ Slammed into as-23708. 01527_ as-23708 destroyed. 01528_ Acquired 20 matter. 01529_ Acquired Core Shielding. 01535_ as-35435 destroyed. 01537_ Slammed into as-59373. 01538_ as-59373 destroyed. 01538_ Assault Rifle broken. 01538_ Destabilizing: Short circuit. 01539_ Acquired 20 matter. 01540_ Dropped Broken Assault Rifle. 01546_ Slammed into as-55799. 01547_ Destabilizing: Core damaged (-5). 01548_ Slammed into as-55799. 01553_ as-55799 destroyed. 01554_ Acquired 20 matter. 01554_ Acquired 10 matter. 01557_ Acquired 7 matter. Map ----- +----------------------------------------------------+ | ???#???### ##### ##??????????? | | ??????### #### """ ##??????????? | | ?????#### %% """ ##??????????? | | ?????### %##### """!%! ##??????????? | | #????## ##### ##??????????? | | ????### =###### #### "##??????????? | | ???#### !%###### #### "##??????????? | | ???### *=##### #### "##??????????? | | ??### % ###??????????? | | ?#### % ########### ###??????????? | | ?### ############## ##???????????? | | ### ######???????## ##???????????? | | ## %""" ###??????????## ##??#????????? | | ## """ #########????## ##???????????? | | ## """ #??#?## ##???????????? | | ### """ ###### #?????? ##???????????? | | ### ####??# #?????? ##???????????? | | ?## ####???# #??????? ##???????????? | | ?### ####????# #?????????????????????? | | ?#######??????# ##### #???????????? | | ??????????????# #??????????? | | ?#???#????????# ##### #?????????? | | ?????####?????# #?????????????????????? | | ????## ##????# #?????????????????????? | | ????# ######a##????????????????????? | | ????# @a #????????????????????? | | ????# ##%#### #????????????????????? | | ????# ## #??? #????????????????????? | | ????# ### #??? #????????????????????? | | ???## ### #??? #????????????????????? | | ??## [#??? #????????????????????? | | ?## """=####??? ????????????????????? | | ?# """ ##????? ????????????????????? | | ?# """ ##???? #????????????????????? | | ?# !! #?????#????????????????????? | | ?# #??????????????????????????? | | ?# #??????????????????????????? | | ?##### ##??????????????????????????? | | ?????## ##???????????????????????????? | | ??????####????????????????????????????? | | ??????????????????????????????????????? | | ??????????????????????????????????????? | | ??????????????????????????????????????? | | ??????????????????????????????????????? | | ??????????????????????????????????????? | | ??????????????????????????????????????? | | ??????????????????????????????????????? | | ??????????????????????????????????????? | | ??????????????????????????????????????? | | ??????????????????????????????????????? | +----------------------------------------------------+ Best States ------------- Heat Dissipation 25 Energy Generation 14 Energy Capacity 250 Matter Stores 300 Matter Capacity 300 Sight Range 16 Terrain Scan Range 14 Terrain Scan Density 10 Resistance: KI 35 Resistance: TH 35 Resistance: EX 35 Resistance: EM 35 Resistance: I 35 Resistance: S 35 Resistance: P 35 Core Shielding 20 Evasion (%) 55 Offensive Hacking 20 Item Schematics ----------------- None Robot Schematics ------------------ None Fabricated ------------ Nothing Repaired ---------- Nothing Studied --------- None Alien Tech Used ----------------- None Achievements -------------- None Challenges ------------ None Game ------ Seed PiercingDerelictCycler Manual? 0 Play Time 00:13:42 Cumulative 125.9 hours Start 2025.11.21 @ 08:27:57 End 2025.11.21 @ 08:43:30 Sessions 1 Manual Loads 0 Difficulty Explorer Special Mode None Game No. 145 Rogue 0 Adventurer 0 Explorer 145 Win Type - Total 0 Types 0/0/0/0/0/0/0/0/0/0 Lore% 66 Gallery% 65 Achievement% 50 Wizard Run 0 Options --------- Layout 1 ASCII 0 Keyboard 0 Movement Mouse Keybinds 0 Fullscreen 1 Font 24/Smallcaps Map View 50x35 Zoom Use 0% Tactical HUD 1 Map Filters NONE Filters NONE Steam 1 RUN: fde74746-4c93-4412-bf05-485841132ade